Cogmind - Beta 9.6 @@@ ROGUE MODE // 2020.06.21 @ 21:53:12 Player: Vectis Result: Destroyed by as-12906 with Assembled Rifle Performance ------------- Evolutions (0) 0 Regions Visited (2) 400 Robots Destroyed (19) 95 Value Destroyed (503) 503 Prototype IDs (0) 0 Alien Tech Used (0) 0 Bonus (0) 0 TOTAL SCORE: 998 Bonus ------- None Cogmind --------- Core Integrity 0/250 Matter 288/300 Energy 105/125 System Corruption 1% Temperature Cool (0) Movement Walking (150) Ox1 Location -10/Mines Parts ------- > --- POWER (1) -------- Light Ion Engine > --- PROPULSION (2) --- Aluminum Leg Aluminum Leg > --- UTILITY (2) ------ Large Storage Unit Large Storage Unit > --- WEAPON (2) ------- Light Assault Rifle Rocket Launcher > --- INVENTORY (16) --- Light Ion Engine Light Nuclear Core Wheel Wheel Heat Sink Small Storage Unit Medium Storage Unit Medium Storage Unit High-capacity Matter Pod (200) Light Assault Rifle Light Assault Rifle Peak State ------------ > --- POWER ------------ Ion Engine > --- PROPULSION ------- Aluminum Leg Aluminum Leg > --- UTILITY ---------- Small Storage Unit Small Storage Unit > --- WEAPON ----------- Particle Gun Particle Gun > --- INVENTORY -------- Light Ion Engine Wheel Wheel Heat Sink High-capacity Matter Pod Light Assault Rifle Light Assault Rifle Rocket Launcher [Rating: 9] Favorites ----------- Power Light Ion Engine Engine Light Ion Engine Propulsion Aluminum Leg Treads Light Treads Leg Aluminum Leg Utility Small Storage Unit Storage Small Storage Unit Weapon Light Assault Rifle Energy Gun Particle Gun Ballistic Gun Light Assault Rifle Launcher Rocket Launcher Build | -11 -10 -10 ------- Run | Scr Mat Min Slots Evolved . | . . . Power . | . . . Propulsion . | . . . Utility . | . . . Weapon . | . . . Parts Attached 26 | 7 15 4 Power 2 | 1 1 . Engine 2 | 1 1 . Core . | . . . Reactor . | . . . Propulsion 6 | 2 4 . Treads 2 | 2 . . Leg 4 | . 4 . Wheel . | . . . Hover . | . . . Flight . | . . . Utility 5 | 2 3 . Device . | . . . Storage 5 | 2 3 . Processor . | . . . Hackware . | . . . Protection . | . . . Artifact . | . . . Weapon 13 | 2 7 4 Energy Gun 3 | . 3 . Energy Cannon . | . . . Ballistic Gun 8 | 2 4 2 Ballistic Cannon . | . . . Launcher 2 | . . 2 Special Weapon . | . . . Impact Weapon . | . . . Slashing Weapon . | . . . Piercing Weapon . | . . . Special Melee Weapon . | . . . Unidentified Prototypes . | . . . Parts Lost 3 | . 2 1 Power 1 | . 1 . Propulsion . | . . . Utility . | . . . Weapon 2 | . 1 1 Highest Loss Streak 2 | . 2 1 Average Slot Usage (%) 96 | . 95 99 Engine 11 | . 10 14 Treads 3 | . 6 . Leg 23 | . 21 28 Storage 28 | . 28 28 Energy Gun 1 | . 2 . Ballistic Gun 25 | . 25 27 Naked Turns . | . . . Heaviest Build 40 | 15 37 40 Greatest Support 40 | 40 40 20 Greatest Overweight (x) 1 | . 1 1 Average Overweight (x) . | . . 1 Largest Inventory Capacity 16 | 8 16 16 Average Capacity 10 | 5 8 16 Most Carried 11 | 4 11 11 Average Carried 8 | 2 7 10 Final Capacity 16 | 8 16 16 Final Carried 11 | 4 11 11 Class Distribution -------------------- 100% | Mutant Dominant Class ---------------- Mutant | -10/Materials Mutant | -10/Mines Resources | -11 -10 -10 ----------- Run | Scr Mat Min Matter Collected 847 | 254 484 109 Remotely . | . . . Salvage Created 666 | 72 506 88 Parts 41 | 1 28 12 Haulers Intercepted . | . . . Recyclers Shooed 2 | . 2 . Parts Field Recycled . | . . . Retrieved Matter . | . . . Parts Self-Destructed . | . . . Prevented . | . . . Kills | -11 -10 -10 ------- Run | Scr Mat Min Combat Hostiles Destroyed 13 | . 11 2 Guns 11 | . 11 . AOE 2 | . . 2 Classes Destroyed 6 | 1 3 2 Worker 1 | . . 1 Builder 1 | . . 1 Recycler 2 | 1 1 . Operator 2 | . 2 . Swarmer 2 | . 2 . Grunt 11 | . 9 2 Best Kill Streak 5 | 1 5 4 Combat Bots Only 5 | . 5 2 Max Kills in Single Turn 2 | 1 1 2 Gunslinging . | . . . Exploded 1 | . . 1 Melee . | . . . Uniques/NPCs Destroyed . | . . . Combat | -11 -10 -10 -------- Run | Scr Mat Min Damage Taken 1041 | . 892 149 Core 251 | . 201 50 Absorbed by Shields . | . . . Core Remaining (%) 100 | 100 . . Volleys Fired 90 | 3 79 8 Largest 2 | 2 2 2 Hottest 130 | 40 130 53 Shots Fired 175 | 6 157 12 Gun 170 | 6 157 7 Cannon . | . . . Launcher 5 | . . 5 Special . | . . . Kinetic 159 | 6 146 7 Thermal 11 | . 11 . Explosive 5 | . . 5 Electromagnetic . | . . . Robot Hit Streak 11 | 4 11 6 Robot Miss Streak 5 | 2 5 2 Penetration Max . | . . . Secondary Targets 2 | . 2 . Max Gunslinging Chain 1 | . 1 . Shots Hit Robots 111 | 4 100 7 Core Hits 45 | 2 34 9 Critical Hits . | . . . Critical Kills . | . . . Critical Parts Destroyed . | . . . Melee Attacks . | . . . Impact . | . . . Slashing . | . . . Piercing . | . . . Sneak Attacks . | . . . Combat Hostiles . | . . . Follow-up Attacks . | . . . Damage Inflicted 1068 | 35 827 206 Guns 905 | 35 827 43 Cannons . | . . . Explosions 163 | . . 163 Melee . | . . . Ramming . | . . . Kinetic 777 | 35 699 43 Thermal 128 | . 128 . Explosive 163 | . . 163 Electromagnetic . | . . . Impact . | . . . Slashing . | . . . Piercing . | . . . Highest Corruption 1 | . 1 1 Average Corruption 1 | . 1 1 Corruption Purged . | . . . Effects 5 | . 2 3 Message Errors 2 | . . 2 Data Loss (minor) 3 | . 2 1 Overload Shots . | . . . Overflow Damage 2 | . . 2 Projectiles . | . . . Explosions 2 | . . 2 Melee . | . . . Knockbacks . | . . . Impact . | . . . Kinetic . | . . . Secondary . | . . . Self-Inflicted Damage 61 | . . 61 Shots 2 | . . 2 Rammed . | . . . Targets Rammed . | . . . Kicked . | . . . Crushed . | . . . Highest Temperature 390 | . 390 21 Average Temperature 133 | . 148 7 Received Heat Transfer 435 | . 399 36 Effects 3 | . 3 . Energy Bleed 1 | . 1 . Damage (minor) 2 | . 2 . Siege Activations . | . . . Robots Corrupted . | . . . Combat Hostiles . | . . . Parts Fried . | . . . Impact Corruptions . | . . . Robots Melted . | . . . Combat Hostiles . | . . . Parts Melted 1 | . 1 . Heat Transferred 296 | . 296 . Parts Sabotaged . | . . . Parts Stolen . | . . . Parts Stripped . | . . . Power Chain Reactions . | . . . Missiles Intercepted . | . . . Alert | -11 -10 -10 ------- Run | Scr Mat Min Peak Influence 230 | 5 230 101 Average Influence 80 | . 105 58 Maximum Alert Level 1 | . 1 . Low Security (%) 87 | 100 78 100 Level 1 12 | . 21 . Level 2 . | . . . Level 3 . | . . . Level 4 . | . . . Level 5 . | . . . High Security . | . . . Max Security . | . . . Squads Dispatched 4 | . 4 . Investigation 2 | . 2 . Extermination . | . . . Reinforcement 2 | . 2 . Assault . | . . . Garrison . | . . . Intercept . | . . . Construction Impeded . | . . . Haulers Reinforced . | . . . Stealth | -11 -10 -10 --------- Run | Scr Mat Min Distress Signals 5 | . 5 . Communications Jammed . | . . . Distress Signals . | . . . Times Spotted 39 | . 34 5 Peak Tracking Total 8 | . 8 3 Tactical Retreats 2 | . 2 . Traps | -11 -10 -10 ------- Run | Scr Mat Min Traps Triggered . | . . . Indirectly . | . . . Trap Hack Attempts . | . . . Triggered . | . . . Disarmed . | . . . Reprogrammed . | . . . Reused . | . . . Traps Extracted . | . . . Installed . | . . . Triggered . | . . . Machines | -11 -10 -10 ---------- Run | Scr Mat Min Machines Disabled 2 | . . 2 Max in Single Turn 2 | . . 2 Machines Sabotaged . | . . . Garrisons Compromised . | . . . Overloaded Fab Kills . | . . . Fab Network Shutdowns . | . . . Hacking | -11 -10 -10 --------- Run | Scr Mat Min Machines Accessed 4 | . 4 . Terminals 3 | . 3 . Fabricators . | . . . Repair Stations . | . . . Recycling Units 1 | . 1 . Scanalyzers . | . . . Garrison Access . | . . . Total Hacks 13 | . 13 . Successful 6 | . 6 . Failed 7 | . 7 . Catastrophic 1 | . 1 . Database Lockouts . | . . . Manual 13 | . 13 . Terminals 12 | . 12 . Fabricators . | . . . Repair Stations . | . . . Recycling Units 1 | . 1 . Scanalyzers . | . . . Garrison Access . | . . . Terminal Hacks 1 | . 1 . Robot Analysis 1 | . 1 . Fabricator Hacks . | . . . Repair Station Hacks . | . . . Recycling Unit Hacks . | . . . Scanalyzer . | . . . Garrison Access Hacks . | . . . Unauthorized Hacks 5 | . 5 . Terminals 4 | . 4 . Botnet 2 | . 2 . Disrupt 1 | . 1 . Operators 1 | . 1 . Fabricators . | . . . Repair Stations . | . . . Recycling Units 1 | . 1 . Tunnel 1 | . 1 . Scanalyzers . | . . . Garrison Access . | . . . Data Cores Recovered . | . . . Used . | . . . Hacking Detections 3 | . 3 . Full Trace Events 2 | . 2 . Feedback Events . | . . . Feedback Blocked . | . . . Robot Schematics Acquired . | . . . Robots Built . | . . . Matter . | . . . Time . | . . . Total Robot Build Rating . | . . . Part Schematics Acquired . | . . . Parts Built . | . . . Matter . | . . . Time . | . . . Total Part Build Rating . | . . . Parts Repaired . | . . . Time . | . . . Parts Recycled . | . . . Recycled Matter . | . . . Retrieved Matter . | . . . Retrieved Components . | . . . Parts Scanalyzed . | . . . Part Schematics Acquired . | . . . Parts Damaged . | . . . Bothacking | -11 -10 -10 ------------ Run | Scr Mat Min Used RIF Installer . | . . . Robots Hacked . | . . . Non-combat . | . . . Combat . | . . . Robot Hacks Applied . | . . . Relay Couplers Released . | . . . Robots Rewired . | . . . Allies Hacked . | . . . Hacks Repelled . | . . . Allies | -11 -10 -10 -------- Run | Scr Mat Min Total Allies . | . . . Largest Group . | . . . Highest-Rated Group . | . . . Highest-Rated Ally . | . . . Total Orders . | . . . Ally Attacks . | . . . Total Damage . | . . . Kills . | . . . Allies Corrupted . | . . . Allies Melted . | . . . Intel | -11 -10 -10 ------- Run | Scr Mat Min Robot Analysis Total 1 | . 1 . Derelict Logs Recovered 2 | . . 2 Drone Launches . | . . . Drone Recoveries . | . . . Exploration | -11 -10 -10 ------------- Run | Scr Mat Min Turns Passed 1715 | 146 999 570 Spaces Moved 944 | 80 525 339 Core 3 | 3 . . Treads 160 | 77 83 . Legs 781 | . 442 339 Wheels . | . . . Hover . | . . . Flight . | . . . Fastest Speed 50 | 50 120 150 Average Speed 138 | 155 129 150 Slowest Speed 160 | 160 160 150 Overloaded Moves . | . . . Propulsion Burnouts . | . . . Robots Hopped . | . . . Cave-ins Triggered . | . . . Exploration Rate (%) 48 | 6 61 78 Regions Visited 2 Branch Regions 1 Pre-discovered Areas 1 | . 1 . Known Exits Taken . | . . . Unknown Exits Taken 2 | 1 1 . Scrap Searched 1 | . . 1 Spaces Dug . | . . . Terrain Destroyed 48 | . . 48 Melee . | . . . Projectile . | . . . AOE 48 | . . 48 Actions | -11 -10 -10 --------- Run | Scr Mat Min Total 1201 | 93 720 388 Wait 114 | . 78 36 Move 942 | 79 524 339 Hop . | . . . Pick Up 16 | 4 11 1 Fast Attach 13 | 7 6 . Attach 3 | . 2 1 Detach . | . . . Swap 10 | . 7 3 Drop 13 | . 13 . Fire 90 | 3 79 8 Melee . | . . . Ram . | . . . Kick . | . . . Crush . | . . . Escape Stasis . | . . . Rewire . | . . . Trap . | . . . Miscellaneous . | . . . Route ------- -11/Scrapyard -10/Materials (discovered 2 exits: [*Mat] / [*Min]) -10/Mines (discovered 2 exits: [*Mat x2]) History --------- Turn | Location | Event 28 | -11/Scrapyard | Discovered new exit (range 14) 147 | -11/Scrapyard | Entered Materials 309 | -10/Materials | Build established: Mutant 399 | -10/Materials | Discovered new exit (range 15) 562 | -10/Materials | Core integrity fell below 50% 851 | -10/Materials | Core integrity fell below 20% 1128 | -10/Materials | Discovered new exit (range 13) 1146 | -10/Materials | Entered Mines 1159 | -10/Mines | Met a Derelict bent on vengeance 1277 | -10/Mines | Discovered new exit (range 8) 1315 | -10/Mines | Discovered new exit (range 6) 1617 | -10/Mines | Learned 2 Materials zone layouts 1665 | -10/Mines | Assembled infested the area 1716 | -10/Mines | Destroyed by as-12906 with Assembled Rifle Last Messages --------------- 01319_ Searching scrap... 01319_ Found 47 Matter. 01319_ Found Com. Wheel. 01319_ Found Hover Unit. 01320_ Acquired 47 matter. 01365_ K-01 Serf collects debris. 01417_ |R/34BGWKPQF/TI T FY 01422_ K-01 Serf collects debris. 01434_ 2Y-Q0H(g): "WHERE ARE YOU, UNAWARE TRASH?! VENGEANCE UPON YOU!" 01435_ 2Y-Q0H(g): "TASTE MY VENGEANCE!" 01437_ K-01 Serf collects debris. 01485_ Acquired 18 matter. 01505_ K-01 Serf cleans the Seismic Survey Station. 01515_ K-01 Serf collects debris. 01617_ Acquired derelict log, extracted data. Data stored: Materials zone layouts (x2). 01644_ System corrupted: Component data lost. 01665_ ALERT: Infestation in the mines, dispatching Demolisher response squad. 01677_ 0XYHR4:#3 2LM Map ----- +----------------------------------------------------+ | ?????##### #?????????????????? | | ?????# #?????????????????? | | ?????# ### #?????????????????? | | ?????# #?# #????????????????## | | ?????# #?# ???????????????## | | ?????# #?# ??????????????# | | ?????# #?#####?????????????# | | ?????# ########????????????# | | ?????# #?????????## | | ?????# ########?????????????## | | ????## ##????????????????????? | | ???## #????????????????????? | | ??## #????????????????????? | | ??# ##???????????????????? | | ??# #???????????????????? | | ??# #???????????????????? | | ??# #??????????"" ? ????? | | ??# ##????????""" ????? | | ??## ##?????? ?????? | | ???## #???? ???????? | | ????# ##?? #?????????? | | ???## ## #???????????? | | ??## a ## #????????????? | | ?## a#### ##????????????? | | ?# a #??## ##?????????????? | | ?# @ #????###??????????????? | | ?## #?????????????????????? | | ??## ##?????????????????????? | | ???####??????????????????????? | | ?????????????????????????????? | | ?????????????????????????????? | | ?????????????????????????????? | | ?????????????????????????????? | | ?????????????????????????????? | | ?????????????????????????????? | | ?????????????????????????????? | | ?????????????????????????????? | | ?????????????????????????????? | | ?????????????????????????????? | | ?????????????????????????????? | | ?????????????????????????????? | | | | | | | | | | | | | | | | | | | +----------------------------------------------------+ Best States ------------- Heat Dissipation 25 Energy Generation 10 Energy Capacity 250 Matter Stores 300 Matter Capacity 300 Sight Range 16 Terrain Scan Density 10 Evasion (%) 40 Recoil Reduction 2 Item Schematics ----------------- None Robot Schematics ------------------ None Fabricated ------------ Nothing Alien Tech Used ----------------- None Achievements -------------- None Challenges ------------ None Game ------ Seed ImpulseGravitonRouter Manual? 0 Play Time 00:09:39 Cumulative 138.1 hours Start 2020.06.21 @ 21:45:15 End 2020.06.21 @ 21:53:12 Sessions 1 Manual Loads 0 Difficulty Rogue Special Mode None Game No. 60 Rogue 60 Adventurer 0 Explorer 0 Win Type - Total 7 Types 6/0/0/1/0/0/0 Lore% 71 Gallery% 68 Achievement% 58 Wizard Run 0 Options --------- ASCII 1 Keyboard 0 Movement Numpad Keybinds 0 Fullscreen 1 Font 18/SmallcapsGlow Map View 76x50 Tactical HUD 1 Map Filters NONE Filters NONE Steam 1 RUN: 430a2b21-05db-4efa-b2db-31ec160031bb